Workbook

Sheet Model 1 Week 1 (hidden)
A1: Decision Variables | B1: Monday AM | C1: Monday PM | D1: Tuesday AM | E1: Tuesday PM | F1: Wednesday AM | G1: Wednesday PM | H1: Thursday AM | I1: Thursday PM | J1: Friday AM | K1: Friday PM
A2: Provider 1 | B2: 1 | C2: 0 | D2: 1 | E2: 1 | F2: 0 | G2: 1 | H2: 1 | I2: 1 | J2: 1 | K2: 0
A3: Provider 2 | B3: 0 | C3: 0.9999997126 | D3: 0 | E3: 0 | F3: 1 | G3: 0.9999997126 | H3: 0.9999997126 | I3: 0.9999997126 | J3: 0.9999997126 | K3: 0.9999997126
A4: Provider 3 | B4: 1 | C4: 1 | D4: 0 | E4: 1 | F4: 1 | G4: 0 | H4: 0 | I4: 1 | J4: 1 | K4: 1
A5: Provider 4 | B5: 0 | C5: 0 | D5: 1 | E5: 0 | F5: 1 | G5: 1 | H5: 1 | I5: 1 | J5: 1 | K5: 1
A6: Provider 5 | B6: 0 | C6: 0 | D6: 1 | E6: 1 | F6: 1 | G6: 1 | H6: 1 | I6: 1 | J6: 1 | K6: 1
A7: Provider 6 | B7: 0 | C7: 1 | D7: 1 | E7: 1 | F7: 0 | G7: 1 | H7: 1 | I7: 1 | J7: 1 | K7: 1
A8: Provider 7 | B8: 1 | C8: 1 | D8: 1 | E8: 0 | F8: 0 | G8: 1 | H8: 1 | I8: 1 | J8: 1 | K8: 1
A9: Provider 8 | B9: 1 | C9: 0 | D9: 1 | E9: 1 | F9: 0 | G9: 1 | H9: 1 | I9: 1 | J9: 1 | K9: 1
A11: Objective Function | B11: Max | C11: =SUMPRODUCT(DecisionVar1, Preference1) -> 59.99999828
A13: Constraints
A14: Administrative & Triage Requirement
A15: Provider 1 | B15: =SUM(B2:K2) -> 7 | C15: = | D15: 7
A16: Provider 2 | B16: 6.999998276 | C16: = | D16: 7
A17: Provider 3 | B17: 7 | C17: = | D17: 7
A18: Provider 4 | B18: 7 | C18: = | D18: 7
A19: Provider 5 | B19: 8 | C19: = | D19: 8
A20: Provider 6 | B20: 8 | C20: = | D20: 8
A21: Provider 7 | B21: 8 | C21: = | D21: 8
A22: Provider 8 | B22: 8 | C22: = | D22: 8
A24: Room Utilization | B24: Monday AM | C24: Monday PM | D24: Tuesday AM | E24: Tuesday PM | F24: Wednesday AM | G24: Wednesday PM | H24: Thursday AM | I24: Thursday PM | J24: Friday AM | K24: Friday PM
A25: Total Rooms Used | B25: =SUM(SUMPRODUCT(ProvSchedW1P1, RoomProv1), SUMPRODUCT(SpecSchedW1P1, RoomSpec1)) -> 17 | C25: =SUM(SUMPRODUCT(ProvSchedW1P2, RoomProv2), SUMPRODUCT(SpecSchedW1P2, RoomSpec2)) -> 14.99999943 | D25: =SUM(SUMPRODUCT(ProvSchedW1P3, RoomProv3), SUMPRODUCT(SpecSchedW1P3, RoomSpec3)) -> 11 | E25: =SUM(SUMPRODUCT(ProvSchedW1P4, RoomProv4), SUMPRODUCT(SpecSchedW1P4, RoomSpec4)) -> 9 | F25: =SUM(SUMPRODUCT(ProvSchedW1P5, RoomProv5), SUMPRODUCT(SpecSchedW1P5, RoomSpec5)) -> 12 | G25: =SUM(SUMPRODUCT(ProvSchedW1P6, RoomProv6), SUMPRODUCT(SpecSchedW1P6, RoomSpec6)) -> 12.99999943 | H25: =SUM(SUMPRODUCT(ProvSchedW1P7, RoomProv7), SUMPRODUCT(SpecSchedW1P7, RoomSpec7)) -> 13.99999943 | I25: =SUM(SUMPRODUCT(ProvSchedW1P8, RoomProv8), SUMPRODUCT(SpecSchedW1P8, RoomSpec8)) -> 14.99999943 | J25: =SUM(SUMPRODUCT(ProvSchedW1P9, RoomProv9), SUMPRODUCT(SpecSchedW1P9, RoomSpec9)) -> 15.99999943 | K25: =SUM(SUMPRODUCT(ProvSchedW1P10, RoomProv10), SUMPRODUCT(SpecSchedW1P10, RoomSpec10)) -> 14.99999943
B26: <= | C26: <= | D26: <= | E26: <= | F26: <= | G26: <= | H26: <= | I26: <= | J26: <= | K26: <=
A27: Rooms Available | B27: 20 | C27: 20 | D27: 20 | E27: 20 | F27: 20 | G27: 20 | H27: 20 | I27: 20 | J27: 20 | K27: 20
A29: Minimum Provider Requirements in Clinic
A30: Monday AM | B30: =COUNTIF(ProvSchedW1P1,">=0.5") -> 4 | C30: >= | D30: 4
A31: Monday PM | B31: =COUNTIF(ProvSchedW1P2,">=0.5") -> 4 | C31: >= | D31: 4
A32: Tuesday AM | B32: =COUNTIF(ProvSchedW1P3,">=0.5") -> 6 | C32: >= | D32: 4
A33: Tuesday PM | B33: =COUNTIF(ProvSchedW1P4,">=0.5") -> 5 | C33: >= | D33: 4
A34: Wednesday AM | B34: =COUNTIF(ProvSchedW1P5,">=0.5") -> 4 | C34: >= | D34: 4
A35: Wednesday PM | B35: =COUNTIF(ProvSchedW1P6,">=0.5") -> 7 | C35: >= | D35: 4
A36: Thursday AM | B36: =COUNTIF(ProvSchedW1P7,">=0.5") -> 7 | C36: >= | D36: 4
A37: Thursday PM | B37: =COUNTIF(ProvSchedW1P8,">=0.5") -> 8 | C37: >= | D37: 4
A38: Friday AM | B38: =COUNTIF(ProvSchedW1P9,">=0.5") -> 8 | C38: >= | D38: 4
A39: Friday PM | B39: =COUNTIF(ProvSchedW1P10,">=0.5") -> 7 | C39: >= | D39: 4

Sheet Model 1 Week 2 (hidden)
A1: Decision Variables | B1: Monday AM | C1: Monday PM | D1: Tuesday AM | E1: Tuesday PM | F1: Wednesday AM | G1: Wednesday PM | H1: Thursday AM | I1: Thursday PM | J1: Friday AM | K1: Friday PM
A2: Provider 1 | B2: 0.9999999586 | C2: 0 | D2: 1 | E2: 1 | F2: 1 | G2: 1 | H2: 1 | I2: 1 | J2: 1 | K2: 0
A3: Provider 2 | B3: 1 | C3: 1 | D3: 0 | E3: 1 | F3: 0 | G3: 1 | H3: 1 | I3: 1 | J3: 1 | K3: 1
A4: Provider 3 | B4: 1 | C4: 1 | D4: 1 | E4: 1 | F4: 1 | G4: 0 | H4: 0 | I4: 0.9999999968 | J4: 1 | K4: 0.9999999968
A5: Provider 4 | B5: 1 | C5: 0 | D5: 1 | E5: 1 | F5: 0 | G5: 1 | H5: 1 | I5: 1 | J5: 1 | K5: 1
A6: Provider 5 | B6: 0 | C6: 0 | D6: 0.9999999539 | E6: 1 | F6: 0 | G6: 1 | H6: 1 | I6: 1 | J6: 1 | K6: 1
A7: Provider 6 | B7: 0 | C7: 0 | D7: 0.9999999936 | E7: 0 | F7: 1 | G7: 0.999999995 | H7: 0.999999995 | I7: 0.999999995 | J7: 0.999999995 | K7: 0.999999995
A8: Provider 7 | B8: 0 | C8: 1 | D8: 1 | E8: 0 | F8: 0 | G8: 1 | H8: 1 | I8: 1 | J8: 1 | K8: 1
A9: Provider 8 | B9: 0 | C9: 1 | D9: 0 | E9: 0 | F9: 1 | G9: 1 | H9: 1 | I9: 1 | J9: 1 | K9: 1
A11: Objective Function | B11: Max | C11: =SUMPRODUCT(DecisionVar2, Preference2) -> 59.99999987
A13: Constraints
A14: Administrative & Triage Requirement
A15: Provider 1 | B15: =SUM(B2:K2) -> 7.999999959 | C15: = | D15: 8
A16: Provider 2 | B16: 8 | C16: = | D16: 8
A17: Provider 3 | B17: 7.999999994 | C17: = | D17: 8
A18: Provider 4 | B18: 8 | C18: = | D18: 8
A19: Provider 5 | B19: 6.999999954 | C19: = | D19: 7
A20: Provider 6 | B20: 6.999999969 | C20: = | D20: 7
A21: Provider 7 | B21: 7 | C21: = | D21: 7
A22: Provider 8 | B22: 7 | C22: = | D22: 7
A24: Room Utilization | B24: Monday AM | C24: Monday PM | D24: Tuesday AM | E24: Tuesday PM | F24: Wednesday AM | G24: Wednesday PM | H24: Thursday AM | I24: Thursday PM | J24: Friday AM | K24: Friday PM
A25: Total Rooms Used | B25: =SUM(SUMPRODUCT(ProvSchedW2P1, RoomProv1), SUMPRODUCT(SpecSchedW2P1, RoomSpec1)) -> 16.99999996 | C25: =SUM(SUMPRODUCT(ProvSchedW2P2, RoomProv2), SUMPRODUCT(SpecSchedW2P2, RoomSpec2)) -> 15 | D25: =SUM(SUMPRODUCT(ProvSchedW2P3, RoomProv3), SUMPRODUCT(SpecSchedW2P3, RoomSpec3)) -> 10.99999989 | E25: =SUM(SUMPRODUCT(ProvSchedW2P4, RoomProv4), SUMPRODUCT(SpecSchedW2P4, RoomSpec4)) -> 9 | F25: =SUM(SUMPRODUCT(ProvSchedW2P5, RoomProv5), SUMPRODUCT(SpecSchedW2P5, RoomSpec5)) -> 11 | G25: =SUM(SUMPRODUCT(ProvSchedW2P6, RoomProv6), SUMPRODUCT(SpecSchedW2P6, RoomSpec6)) -> 12.99999999 | H25: =SUM(SUMPRODUCT(ProvSchedW2P7, RoomProv7), SUMPRODUCT(SpecSchedW2P7, RoomSpec7)) -> 13.99999999 | I25: =SUM(SUMPRODUCT(ProvSchedW2P8, RoomProv8), SUMPRODUCT(SpecSchedW2P8, RoomSpec8)) -> 14.99999998 | J25: =SUM(SUMPRODUCT(ProvSchedW2P9, RoomProv9), SUMPRODUCT(SpecSchedW2P9, RoomSpec9)) -> 15.99999999 | K25: =SUM(SUMPRODUCT(ProvSchedW2P10, RoomProv10), SUMPRODUCT(SpecSchedW2P10, RoomSpec10)) -> 14.99999998
B26: <= | C26: <= | D26: <= | E26: <= | F26: <= | G26: <= | H26: <= | I26: <= | J26: <= | K26: <=
A27: Rooms Available | B27: 20 | C27: 20 | D27: 20 | E27: 20 | F27: 20 | G27: 20 | H27: 20 | I27: 20 | J27: 20 | K27: 20
A29: Minimum Provider Requirements in Clinic
A30: Monday AM | B30: =COUNTIF(ProvSchedW2P1,">=0.5") -> 4 | C30: >= | D30: 4
A31: Monday PM | B31: =COUNTIF(ProvSchedW2P2,">=0.5") -> 4 | C31: >= | D31: 4
A32: Tuesday AM | B32: =COUNTIF(ProvSchedW2P3,">=0.5") -> 6 | C32: >= | D32: 4
A33: Tuesday PM | B33: =COUNTIF(ProvSchedW2P4,">=0.5") -> 5 | C33: >= | D33: 4
A34: Wednesday AM | B34: =COUNTIF(ProvSchedW2P5,">=0.5") -> 4 | C34: >= | D34: 4
A35: Wednesday PM | B35: =COUNTIF(ProvSchedW2P6,">=0.5") -> 7 | C35: >= | D35: 4
A36: Thursday AM | B36: =COUNTIF(ProvSchedW2P7,">=0.5") -> 7 | C36: >= | D36: 4
A37: Thursday PM | B37: =COUNTIF(ProvSchedW2P8,">=0.5") -> 8 | C37: >= | D37: 4
A38: Friday AM | B38: =COUNTIF(ProvSchedW2P9,">=0.5") -> 8 | C38: >= | D38: 4
A39: Friday PM | B39: =COUNTIF(ProvSchedW2P10,">=0.5") -> 7 | C39: >= | D39: 4

Sheet Model 1 Week 3 (hidden)
A1: Decision Variables | B1: Monday AM | C1: Monday PM | D1: Tuesday AM | E1: Tuesday PM | F1: Wednesday AM | G1: Wednesday PM | H1: Thursday AM | I1: Thursday PM | J1: Friday AM | K1: Friday PM
A2: Provider 1 | B2: 1 | C2: 0 | D2: 1 | E2: 1 | F2: 0 | G2: 1 | H2: 1 | I2: 1 | J2: 1 | K2: 0
A3: Provider 2 | B3: 0 | C3: 0.9999997126 | D3: 0 | E3: 0 | F3: 1 | G3: 0.9999997126 | H3: 0.9999997126 | I3: 0.9999997126 | J3: 0.9999997126 | K3: 0.9999997126
A4: Provider 3 | B4: 1 | C4: 1 | D4: 0 | E4: 1 | F4: 1 | G4: 0 | H4: 0 | I4: 1 | J4: 1 | K4: 1
A5: Provider 4 | B5: 0 | C5: 0 | D5: 1 | E5: 0 | F5: 1 | G5: 1 | H5: 1 | I5: 1 | J5: 1 | K5: 1
A6: Provider 5 | B6: 0 | C6: 0 | D6: 1 | E6: 1 | F6: 1 | G6: 1 | H6: 1 | I6: 1 | J6: 1 | K6: 1
A7: Provider 6 | B7: 0 | C7: 1 | D7: 1 | E7: 1 | F7: 0 | G7: 1 | H7: 1 | I7: 1 | J7: 1 | K7: 1
A8: Provider 7 | B8: 1 | C8: 1 | D8: 1 | E8: 0 | F8: 0 | G8: 1 | H8: 1 | I8: 1 | J8: 1 | K8: 1
A9: Provider 8 | B9: 1 | C9: 0 | D9: 1 | E9: 1 | F9: 0 | G9: 1 | H9: 1 | I9: 1 | J9: 1 | K9: 1
A11: Objective Function | B11: Max | C11: =SUMPRODUCT(DecisionVar3, Preference3) -> 59.99999828
A13: Constraints
A14: Administrative & Triage Requirement
A15: Provider 1 | B15: =SUM(B2:K2) -> 7 | C15: = | D15: 7
A16: Provider 2 | B16: 6.999998276 | C16: = | D16: 7
A17: Provider 3 | B17: 7 | C17: = | D17: 7
A18: Provider 4 | B18: 7 | C18: = | D18: 7
A19: Provider 5 | B19: 8 | C19: = | D19: 8
A20: Provider 6 | B20: 8 | C20: = | D20: 8
A21: Provider 7 | B21: 8 | C21: = | D21: 8
A22: Provider 8 | B22: 8 | C22: = | D22: 8
A24: Room Utilization | B24: Monday AM | C24: Monday PM | D24: Tuesday AM | E24: Tuesday PM | F24: Wednesday AM | G24: Wednesday PM | H24: Thursday AM | I24: Thursday PM | J24: Friday AM | K24: Friday PM
A25: Total Rooms Used | B25: =SUM(SUMPRODUCT(ProvSchedW3P1, RoomProv1), SUMPRODUCT(SpecSchedW3P1, RoomSpec1)) -> 17 | C25: =SUM(SUMPRODUCT(ProvSchedW3P2, RoomProv2), SUMPRODUCT(SpecSchedW3P2, RoomSpec2)) -> 14.99999943 | D25: =SUM(SUMPRODUCT(ProvSchedW3P3, RoomProv3), SUMPRODUCT(SpecSchedW3P3, RoomSpec3)) -> 11 | E25: =SUM(SUMPRODUCT(ProvSchedW3P4, RoomProv4), SUMPRODUCT(SpecSchedW3P4, RoomSpec4)) -> 9 | F25: =SUM(SUMPRODUCT(ProvSchedW3P5, RoomProv5), SUMPRODUCT(SpecSchedW3P5, RoomSpec5)) -> 12 | G25: =SUM(SUMPRODUCT(ProvSchedW3P6, RoomProv6), SUMPRODUCT(SpecSchedW3P6, RoomSpec6)) -> 12.99999943 | H25: =SUM(SUMPRODUCT(ProvSchedW3P7, RoomProv7), SUMPRODUCT(SpecSchedW3P7, RoomSpec7)) -> 13.99999943 | I25: =SUM(SUMPRODUCT(ProvSchedW3P8, RoomProv8), SUMPRODUCT(SpecSchedW3P8, RoomSpec8)) -> 14.99999943 | J25: =SUM(SUMPRODUCT(ProvSchedW3P9, RoomProv9), SUMPRODUCT(SpecSchedW3P9, RoomSpec9)) -> 15.99999943 | K25: =SUM(SUMPRODUCT(ProvSchedW3P10, RoomProv10), SUMPRODUCT(SpecSchedW3P10, RoomSpec10)) -> 14.99999943
B26: <= | C26: <= | D26: <= | E26: <= | F26: <= | G26: <= | H26: <= | I26: <= | J26: <= | K26: <=
A27: Rooms Available | B27: 20 | C27: 20 | D27: 20 | E27: 20 | F27: 20 | G27: 20 | H27: 20 | I27: 20 | J27: 20 | K27: 20
A29: Minimum Provider Requirements in Clinic
A30: Monday AM | B30: =COUNTIF(ProvSchedW3P1,">=0.5") -> 4 | C30: >= | D30: 4
A31: Monday PM | B31: =COUNTIF(ProvSchedW3P2,">=0.5") -> 4 | C31: >= | D31: 4
A32: Tuesday AM | B32: =COUNTIF(ProvSchedW3P3,">=0.5") -> 6 | C32: >= | D32: 4
A33: Tuesday PM | B33: =COUNTIF(ProvSchedW3P4,">=0.5") -> 5 | C33: >= | D33: 4
A34: Wednesday AM | B34: =COUNTIF(ProvSchedW3P5,">=0.5") -> 4 | C34: >= | D34: 4
A35: Wednesday PM | B35: =COUNTIF(ProvSchedW3P6,">=0.5") -> 7 | C35: >= | D35: 4
A36: Thursday AM | B36: =COUNTIF(ProvSchedW3P7,">=0.5") -> 7 | C36: >= | D36: 4
A37: Thursday PM | B37: =COUNTIF(ProvSchedW3P8,">=0.5") -> 8 | C37: >= | D37: 4
A38: Friday AM | B38: =COUNTIF(ProvSchedW3P9,">=0.5") -> 8 | C38: >= | D38: 4
A39: Friday PM | B39: =COUNTIF(ProvSchedW3P10,">=0.5") -> 7 | C39: >= | D39: 4

Sheet Model 1 Week 4 (hidden)
A1: Decision Variables | B1: Monday AM | C1: Monday PM | D1: Tuesday AM | E1: Tuesday PM | F1: Wednesday AM | G1: Wednesday PM | H1: Thursday AM | I1: Thursday PM | J1: Friday AM | K1: Friday PM
A2: Provider 1 | B2: 0.9999999586 | C2: 0 | D2: 1 | E2: 1 | F2: 1 | G2: 1 | H2: 1 | I2: 1 | J2: 1 | K2: 0
A3: Provider 2 | B3: 1 | C3: 1 | D3: 0 | E3: 1 | F3: 0 | G3: 1 | H3: 1 | I3: 1 | J3: 1 | K3: 1
A4: Provider 3 | B4: 1 | C4: 1 | D4: 1 | E4: 1 | F4: 1 | G4: 0 | H4: 0 | I4: 0.9999999968 | J4: 1 | K4: 0.9999999968
A5: Provider 4 | B5: 1 | C5: 0 | D5: 1 | E5: 1 | F5: 0 | G5: 1 | H5: 1 | I5: 1 | J5: 1 | K5: 1
A6: Provider 5 | B6: 0 | C6: 0 | D6: 0.9999999539 | E6: 1 | F6: 0 | G6: 1 | H6: 1 | I6: 1 | J6: 1 | K6: 1
A7: Provider 6 | B7: 0 | C7: 0 | D7: 0.9999999936 | E7: 0 | F7: 1 | G7: 0.999999995 | H7: 0.999999995 | I7: 0.999999995 | J7: 0.999999995 | K7: 0.999999995
A8: Provider 7 | B8: 0 | C8: 1 | D8: 1 | E8: 0 | F8: 0 | G8: 1 | H8: 1 | I8: 1 | J8: 1 | K8: 1
A9: Provider 8 | B9: 0 | C9: 1 | D9: 0 | E9: 0 | F9: 1 | G9: 1 | H9: 1 | I9: 1 | J9: 1 | K9: 1
A11: Objective Function | B11: Max | C11: =SUMPRODUCT(DecisionVar4, Preference4) -> 59.99999987
A13: Constraints
A14: Administrative & Triage Requirement
A15: Provider 1 | B15: =SUM(B2:K2) -> 7.999999959 | C15: = | D15: 8
A16: Provider 2 | B16: 8 | C16: = | D16: 8
A17: Provider 3 | B17: 7.999999994 | C17: = | D17: 8
A18: Provider 4 | B18: 8 | C18: = | D18: 8
A19: Provider 5 | B19: 6.999999954 | C19: = | D19: 7
A20: Provider 6 | B20: 6.999999969 | C20: = | D20: 7
A21: Provider 7 | B21: 7 | C21: = | D21: 7
A22: Provider 8 | B22: 7 | C22: = | D22: 7
A24: Room Utilization | B24: Monday AM | C24: Monday PM | D24: Tuesday AM | E24: Tuesday PM | F24: Wednesday AM | G24: Wednesday PM | H24: Thursday AM | I24: Thursday PM | J24: Friday AM | K24: Friday PM
A25: Total Rooms Used | B25: =SUM(SUMPRODUCT(ProvSchedW4P1, RoomProv1), SUMPRODUCT(SpecSchedW4P1, RoomSpec1)) -> 16.99999996 | C25: =SUM(SUMPRODUCT(ProvSchedW4P2, RoomProv2), SUMPRODUCT(SpecSchedW4P2, RoomSpec2)) -> 15 | D25: =SUM(SUMPRODUCT(ProvSchedW4P3, RoomProv3), SUMPRODUCT(SpecSchedW4P3, RoomSpec3)) -> 10.99999989 | E25: =SUM(SUMPRODUCT(ProvSchedW4P4, RoomProv4), SUMPRODUCT(SpecSchedW4P4, RoomSpec4)) -> 9 | F25: =SUM(SUMPRODUCT(ProvSchedW4P5, RoomProv5), SUMPRODUCT(SpecSchedW4P5, RoomSpec5)) -> 11 | G25: =SUM(SUMPRODUCT(ProvSchedW4P6, RoomProv6), SUMPRODUCT(SpecSchedW4P6, RoomSpec6)) -> 12.99999999 | H25: =SUM(SUMPRODUCT(ProvSchedW4P7, RoomProv7), SUMPRODUCT(SpecSchedW4P7, RoomSpec7)) -> 13.99999999 | I25: =SUM(SUMPRODUCT(ProvSchedW4P8, RoomProv8), SUMPRODUCT(SpecSchedW4P8, RoomSpec8)) -> 14.99999998 | J25: =SUM(SUMPRODUCT(ProvSchedW4P9, RoomProv9), SUMPRODUCT(SpecSchedW4P9, RoomSpec9)) -> 15.99999999 | K25: =SUM(SUMPRODUCT(ProvSchedW4P10, RoomProv10), SUMPRODUCT(SpecSchedW4P10, RoomSpec10)) -> 14.99999998
B26: <= | C26: <= | D26: <= | E26: <= | F26: <= | G26: <= | H26: <= | I26: <= | J26: <= | K26: <=
A27: Rooms Available | B27: 20 | C27: 20 | D27: 20 | E27: 20 | F27: 20 | G27: 20 | H27: 20 | I27: 20 | J27: 20 | K27: 20
A29: Minimum Provider Requirements in Clinic
A30: Monday AM | B30: =COUNTIF(ProvSchedW4P1,">=0.5") -> 4 | C30: >= | D30: 4
A31: Monday PM | B31: =COUNTIF(ProvSchedW4P2,">=0.5") -> 4 | C31: >= | D31: 4
A32: Tuesday AM | B32: =COUNTIF(ProvSchedW4P3,">=0.5") -> 6 | C32: >= | D32: 4
A33: Tuesday PM | B33: =COUNTIF(ProvSchedW4P4,">=0.5") -> 5 | C33: >= | D33: 4
A34: Wednesday AM | B34: =COUNTIF(ProvSchedW4P5,">=0.5") -> 4 | C34: >= | D34: 4
A35: Wednesday PM | B35: =COUNTIF(ProvSchedW4P6,">=0.5") -> 7 | C35: >= | D35: 4
A36: Thursday AM | B36: =COUNTIF(ProvSchedW4P7,">=0.5") -> 7 | C36: >= | D36: 4
A37: Thursday PM | B37: =COUNTIF(ProvSchedW4P8,">=0.5") -> 8 | C37: >= | D37: 4
A38: Friday AM | B38: =COUNTIF(ProvSchedW4P9,">=0.5") -> 8 | C38: >= | D38: 4
A39: Friday PM | B39: =COUNTIF(ProvSchedW4P10,">=0.5") -> 7 | C39: >= | D39: 4

Sheet Model 2 (hidden)
A1: Patient Type | B1: New | C1: Established | D1: Phone
A2: Appointment Length | B2: =newLength -> 60 | C2: =estLength -> 30 | D2: =phoneLength -> 10
A3: Patient mix | B3: =newPercent -> 0.35 | C3: =estPercent -> 0.6 | D3: =phonePercent -> 0.05
A4: Decision variables | B4: 111.1139241 | C4: 190.4810127 | D4: 15.87341772
A6: Objective Function | B6: Max | C6: 1
A8: Available Time
A9: Week 1 | B9: =SUMPRODUCT($B$2:$D$2, $B$4:$D$4) -> 12540 | C9: = | D9: =SUM(C20:L27) -> 12540
A10: Week 2 | B10: =SUMPRODUCT($B$2:$D$2, $B$4:$D$4) -> 12540 | C10: = | D10: =SUM(C28:L35) -> 12540
A11: Week 3 | B11: =SUMPRODUCT($B$2:$D$2, $B$4:$D$4) -> 12540 | C11: = | D11: =SUM(C36:L43) -> 12540
A12: Week 4 | B12: =SUMPRODUCT($B$2:$D$2, $B$4:$D$4) -> 12540 | C12: = | D12: =SUM(C44:L51) -> 12540
A15: Set Percentages | B15: =B3/D3*D4 -> 111.1139241 | C15: = | D15: =B4 -> 111.1139241
A16: Set Percentages | B16: =C3/D3*D4 -> 190.4810127 | C16: = | D16: =C4 -> 190.4810127
A18: Available Time Determination
C19: Monday AM | D19: Monday PM | E19: Tuesday AM | F19: Tuesday PM | G19: Wednesday AM | H19: Wednesday PM | I19: Thursday AM | J19: Thursday PM | K19: Friday AM | L19: Friday PM
A20: Week 1 | B20: Provider 1 | C20: 240 | D20: 0 | E20: 240 | F20: 180 | G20: 0 | H20: 180 | I20: 240 | J20: 180 | K20: 240 | L20: 0
B21: Provider 2 | C21: 0 | D21: 180 | E21: 0 | F21: 0 | G21: 240 | H21: 180 | I21: 240 | J21: 180 | K21: 240 | L21: 180
B22: Provider 3 | C22: 240 | D22: 180 | E22: 0 | F22: 180 | G22: 240 | H22: 0 | I22: 0 | J22: 180 | K22: 240 | L22: 180
B23: Provider 4 | C23: 0 | D23: 0 | E23: 240 | F23: 0 | G23: 240 | H23: 180 | I23: 240 | J23: 180 | K23: 240 | L23: 180
B24: Provider 5 | C24: 0 | D24: 0 | E24: 240 | F24: 180 | G24: 240 | H24: 180 | I24: 240 | J24: 180 | K24: 240 | L24: 180
B25: Provider 6 | C25: 0 | D25: 180 | E25: 240 | F25: 180 | G25: 0 | H25: 180 | I25: 240 | J25: 180 | K25: 240 | L25: 180
B26: Provider 7 | C26: 240 | D26: 180 | E26: 240 | F26: 0 | G26: 0 | H26: 180 | I26: 240 | J26: 180 | K26: 240 | L26: 180
B27: Provider 9 | C27: 240 | D27: 0 | E27: 240 | F27: 180 | G27: 0 | H27: 180 | I27: 240 | J27: 180 | K27: 240 | L27: 180
A28: Week 2 | B28: Provider 1 | C28: 240 | D28: 0 | E28: 240 | F28: 180 | G28: 240 | H28: 180 | I28: 240 | J28: 180 | K28: 240 | L28: 0
B29: Provider 2 | C29: 240 | D29: 180 | E29: 0 | F29: 180 | G29: 0 | H29: 180 | I29: 240 | J29: 180 | K29: 240 | L29: 180
B30: Provider 3 | C30: 240 | D30: 180 | E30: 240 | F30: 180 | G30: 240 | H30: 0 | I30: 0 | J30: 180 | K30: 240 | L30: 180
B31: Provider 4 | C31: 240 | D31: 0 | E31: 240 | F31: 180 | G31: 0 | H31: 180 | I31: 240 | J31: 180 | K31: 240 | L31: 180
B32: Provider 5 | C32: 0 | D32: 0 | E32: 240 | F32: 180 | G32: 0 | H32: 180 | I32: 240 | J32: 180 | K32: 240 | L32: 180
B33: Provider 6 | C33: 0 | D33: 0 | E33: 240 | F33: 0 | G33: 240 | H33: 180 | I33: 240 | J33: 180 | K33: 240 | L33: 180
B34: Provider 7 | C34: 0 | D34: 180 | E34: 240 | F34: 0 | G34: 0 | H34: 180 | I34: 240 | J34: 180 | K34: 240 | L34: 180
B35: Provider 9 | C35: 0 | D35: 180 | E35: 0 | F35: 0 | G35: 240 | H35: 180 | I35: 240 | J35: 180 | K35: 240 | L35: 180
A36: Week 3 | B36: Provider 1 | C36: 240 | D36: 0 | E36: 240 | F36: 180 | G36: 0 | H36: 180 | I36: 240 | J36: 180 | K36: 240 | L36: 0
B37: Provider 2 | C37: 0 | D37: 180 | E37: 0 | F37: 0 | G37: 240 | H37: 180 | I37: 240 | J37: 180 | K37: 240 | L37: 180
B38: Provider 3 | C38: 240 | D38: 180 | E38: 0 | F38: 180 | G38: 240 | H38: 0 | I38: 0 | J38: 180 | K38: 240 | L38: 180
B39: Provider 4 | C39: 0 | D39: 0 | E39: 240 | F39: 0 | G39: 240 | H39: 180 | I39: 240 | J39: 180 | K39: 240 | L39: 180
B40: Provider 5 | C40: 0 | D40: 0 | E40: 240 | F40: 180 | G40: 240 | H40: 180 | I40: 240 | J40: 180 | K40: 240 | L40: 180
B41: Provider 6 | C41: 0 | D41: 180 | E41: 240 | F41: 180 | G41: 0 | H41: 180 | I41: 240 | J41: 180 | K41: 240 | L41: 180
B42: Provider 7 | C42: 240 | D42: 180 | E42: 240 | F42: 0 | G42: 0 | H42: 180 | I42: 240 | J42: 180 | K42: 240 | L42: 180
B43: Provider 9 | C43: 240 | D43: 0 | E43: 240 | F43: 180 | G43: 0 | H43: 180 | I43: 240 | J43: 180 | K43: 240 | L43: 180
A44: Week 4 | B44: Provider 1 | C44: 240 | D44: 0 | E44: 240 | F44: 180 | G44: 240 | H44: 180 | I44: 240 | J44: 180 | K44: 240 | L44: 0
B45: Provider 2 | C45: 240 | D45: 180 | E45: 0 | F45: 180 | G45: 0 | H45: 180 | I45: 240 | J45: 180 | K45: 240 | L45: 180
B46: Provider 3 | C46: 240 | D46: 180 | E46: 240 | F46: 180 | G46: 240 | H46: 0 | I46: 0 | J46: 180 | K46: 240 | L46: 180
B47: Provider 4 | C47: 240 | D47: 0 | E47: 240 | F47: 180 | G47: 0 | H47: 180 | I47: 240 | J47: 180 | K47: 240 | L47: 180
B48: Provider 5 | C48: 0 | D48: 0 | E48: 240 | F48: 180 | G48: 0 | H48: 180 | I48: 240 | J48: 180 | K48: 240 | L48: 180
B49: Provider 6 | C49: 0 | D49: 0 | E49: 240 | F49: 0 | G49: 240 | H49: 180 | I49: 240 | J49: 180 | K49: 240 | L49: 180
B50: Provider 7 | C50: 0 | D50: 180 | E50: 240 | F50: 0 | G50: 0 | H50: 180 | I50: 240 | J50: 180 | K50: 240 | L50: 180
B51: Provider 9 | C51: 0 | D51: 180 | E51: 0 | F51: 0 | G51: 240 | H51: 180 | I51: 240 | J51: 180 | K51: 240 | L51: 180

Sheet Welcome!
A1: ProSkedge
A7: A Linear Programming Based Provider Schedule Planning Tool
A28: This tool was developed as part of a Major Qualifying Project at Worcester Polytechnic Institute.
A29: The accompanying report will be available on WPI's Gordon Library website.

Sheet Specialist Schedules (hidden)
A1: Specialist Schedules
A2: Set to 0 or 1: {0 = Is not scheduled, 1 = Is scheduled}
C4: Monday AM | D4: Monday PM | E4: Tuesday AM | F4: Tuesday PM | G4: Wednesday AM | H4: Wednesday PM | I4: Thursday AM | J4: Thursday PM | K4: Friday AM | L4: Friday PM
A5: Week 1 | B5: Specialist 1 | C5: 1 | D5: 1 | E5: 0 | F5: 0 | G5: 0 | H5: 0 | I5: 0 | J5: 0 | K5: 0 | L5: 0 | N5: Options
B6: Specialist 2 | C6: 1 | D6: 1 | E6: 0 | F6: 0 | G6: 1 | H6: 0 | I6: 0 | J6: 0 | K6: 0 | L6: 0 | N6: 0 | O6: Prefers NOT to be scheduled
B7: Specialist 3 | C7: 1 | D7: 0 | E7: 0 | F7: 0 | G7: 0 | H7: 0 | I7: 0 | J7: 0 | K7: 0 | L7: 0 | N7: 1 | O7: Strongly prefers to be scheduled
B8: Specialist 4 | C8: 1 | D8: 1 | E8: 0 | F8: 0 | G8: 0 | H8: 0 | I8: 0 | J8: 0 | K8: 0 | L8: 0
B9: Specialist 5 | C9: 0 | D9: 0 | E9: 0 | F9: 0 | G9: 0 | H9: 0 | I9: 0 | J9: 0 | K9: 1 | L9: 1
B10: Specialist 6 | C10: 0 | D10: 0 | E10: 0 | F10: 0 | G10: 0 | H10: 0 | I10: 1 | J10: 0 | K10: 0 | L10: 0
B11: Specialist 7 | C11: 0 | D11: 0 | E11: 0 | F11: 0 | G11: 1 | H11: 0 | I11: 0 | J11: 0 | K11: 0 | L11: 0
A12: Week 2 | B12: Specialist 1 | C12: 1 | D12: 1 | E12: 0 | F12: 0 | G12: 0 | H12: 0 | I12: 0 | J12: 0 | K12: 0 | L12: 0
B13: Specialist 2 | C13: 1 | D13: 1 | E13: 0 | F13: 0 | G13: 1 | H13: 0 | I13: 0 | J13: 0 | K13: 0 | L13: 0
B14: Specialist 3 | C14: 1 | D14: 0 | E14: 0 | F14: 0 | G14: 0 | H14: 0 | I14: 0 | J14: 0 | K14: 0 | L14: 0
B15: Specialist 4 | C15: 1 | D15: 1 | E15: 0 | F15: 0 | G15: 0 | H15: 0 | I15: 0 | J15: 0 | K15: 0 | L15: 0
B16: Specialist 5 | C16: 0 | D16: 0 | E16: 0 | F16: 0 | G16: 0 | H16: 0 | I16: 0 | J16: 0 | K16: 1 | L16: 1
B17: Specialist 6 | C17: 0 | D17: 0 | E17: 0 | F17: 0 | G17: 0 | H17: 0 | I17: 1 | J17: 0 | K17: 0 | L17: 0
B18: Specialist 7 | C18: 0 | D18: 0 | E18: 0 | F18: 0 | G18: 1 | H18: 0 | I18: 0 | J18: 0 | K18: 0 | L18: 0
A19: Week 3 | B19: Specialist 1 | C19: 1 | D19: 1 | E19: 0 | F19: 0 | G19: 0 | H19: 0 | I19: 0 | J19: 0 | K19: 0 | L19: 0
B20: Specialist 2 | C20: 1 | D20: 1 | E20: 0 | F20: 0 | G20: 1 | H20: 0 | I20: 0 | J20: 0 | K20: 0 | L20: 0
B21: Specialist 3 | C21: 1 | D21: 0 | E21: 0 | F21: 0 | G21: 0 | H21: 0 | I21: 0 | J21: 0 | K21: 0 | L21: 0
B22: Specialist 4 | C22: 1 | D22: 1 | E22: 0 | F22: 0 | G22: 0 | H22: 0 | I22: 0 | J22: 0 | K22: 0 | L22: 0
B23: Specialist 5 | C23: 0 | D23: 0 | E23: 0 | F23: 0 | G23: 0 | H23: 0 | I23: 0 | J23: 0 | K23: 1 | L23: 1
B24: Specialist 6 | C24: 0 | D24: 0 | E24: 0 | F24: 0 | G24: 0 | H24: 0 | I24: 1 | J24: 0 | K24: 0 | L24: 0
B25: Specialist 7 | C25: 0 | D25: 0 | E25: 0 | F25: 0 | G25: 1 | H25: 0 | I25: 0 | J25: 0 | K25: 0 | L25: 0
A26: Week 4 | B26: Specialist 1 | C26: 1 | D26: 1 | E26: 0 | F26: 0 | G26: 0 | H26: 0 | I26: 0 | J26: 0 | K26: 0 | L26: 0
B27: Specialist 2 | C27: 1 | D27: 1 | E27: 0 | F27: 0 | G27: 1 | H27: 0 | I27: 0 | J27: 0 | K27: 0 | L27: 0
B28: Specialist 3 | C28: 1 | D28: 0 | E28: 0 | F28: 0 | G28: 0 | H28: 0 | I28: 0 | J28: 0 | K28: 0 | L28: 0
B29: Specialist 4 | C29: 1 | D29: 1 | E29: 0 | F29: 0 | G29: 0 | H29: 0 | I29: 0 | J29: 0 | K29: 0 | L29: 0
B30: Specialist 5 | C30: 0 | D30: 0 | E30: 0 | F30: 0 | G30: 0 | H30: 0 | I30: 0 | J30: 0 | K30: 1 | L30: 1
B31: Specialist 6 | C31: 0 | D31: 0 | E31: 0 | F31: 0 | G31: 0 | H31: 0 | I31: 1 | J31: 0 | K31: 0 | L31: 0
B32: Specialist 7 | C32: 0 | D32: 0 | E32: 0 | F32: 0 | G32: 1 | H32: 0 | I32: 0 | J32: 0 | K32: 0 | L32: 0

Sheet Provider Preferences (hidden)
A1: Provider Preferences
A2: {0 = Prefers to be in administrative or triage in this period, 1 = No preference, 2 = Strongly prefers to be scheduled with own patients in this period}
C4: Monday AM | D4: Monday PM | E4: Tuesday AM | F4: Tuesday PM | G4: Wednesday AM | H4: Wednesday PM | I4: Thursday AM | J4: Thursday PM | K4: Friday AM | L4: Friday PM
A5: Week 1 | B5: Provider 1 | C5: 1 | D5: 1 | E5: 1 | F5: 1 | G5: 1 | H5: 1 | I5: 1 | J5: 1 | K5: 1 | L5: 1 | N5: Options
B6: Provider 2 | C6: 1 | D6: 1 | E6: 1 | F6: 1 | G6: 1 | H6: 1 | I6: 1 | J6: 1 | K6: 1 | L6: 1 | N6: 0 | O6: Prefers to be scheduled for administrative time or triage work
B7: Provider 3 | C7: 1 | D7: 1 | E7: 1 | F7: 1 | G7: 1 | H7: 1 | I7: 1 | J7: 1 | K7: 1 | L7: 1 | N7: 1 | O7: No preference
B8: Provider 4 | C8: 1 | D8: 1 | E8: 1 | F8: 1 | G8: 1 | H8: 1 | I8: 1 | J8: 1 | K8: 1 | L8: 1 | N8: 2 | O8: Strongly prefers to be scheduled with own patients in this period
B9: Provider 5 | C9: 1 | D9: 1 | E9: 1 | F9: 1 | G9: 1 | H9: 1 | I9: 1 | J9: 1 | K9: 1 | L9: 1
B10: Provider 6 | C10: 1 | D10: 1 | E10: 1 | F10: 1 | G10: 1 | H10: 1 | I10: 1 | J10: 1 | K10: 1 | L10: 1
B11: Provider 7 | C11: 1 | D11: 1 | E11: 1 | F11: 1 | G11: 1 | H11: 1 | I11: 1 | J11: 1 | K11: 1 | L11: 1
B12: Provider 8 | C12: 1 | D12: 1 | E12: 1 | F12: 1 | G12: 1 | H12: 1 | I12: 1 | J12: 1 | K12: 1 | L12: 1
A13: Week 2 | B13: Provider 1 | C13: 1 | D13: 1 | E13: 1 | F13: 1 | G13: 1 | H13: 1 | I13: 1 | J13: 1 | K13: 1 | L13: 1
B14: Provider 2 | C14: 1 | D14: 1 | E14: 1 | F14: 1 | G14: 1 | H14: 1 | I14: 1 | J14: 1 | K14: 1 | L14: 1
B15: Provider 3 | C15: 1 | D15: 1 | E15: 1 | F15: 1 | G15: 1 | H15: 1 | I15: 1 | J15: 1 | K15: 1 | L15: 1
B16: Provider 4 | C16: 1 | D16: 1 | E16: 1 | F16: 1 | G16: 1 | H16: 1 | I16: 1 | J16: 1 | K16: 1 | L16: 1
B17: Provider 5 | C17: 1 | D17: 1 | E17: 1 | F17: 1 | G17: 1 | H17: 1 | I17: 1 | J17: 1 | K17: 1 | L17: 1
B18: Provider 6 | C18: 1 | D18: 1 | E18: 1 | F18: 1 | G18: 1 | H18: 1 | I18: 1 | J18: 1 | K18: 1 | L18: 1
B19: Provider 7 | C19: 1 | D19: 1 | E19: 1 | F19: 1 | G19: 1 | H19: 1 | I19: 1 | J19: 1 | K19: 1 | L19: 1
B20: Provider 8 | C20: 1 | D20: 1 | E20: 1 | F20: 1 | G20: 1 | H20: 1 | I20: 1 | J20: 1 | K20: 1 | L20: 1
A21: Week 3 | B21: Provider 1 | C21: 1 | D21: 1 | E21: 1 | F21: 1 | G21: 1 | H21: 1 | I21: 1 | J21: 1 | K21: 1 | L21: 1
B22: Provider 2 | C22: 1 | D22: 1 | E22: 1 | F22: 1 | G22: 1 | H22: 1 | I22: 1 | J22: 1 | K22: 1 | L22: 1
B23: Provider 3 | C23: 1 | D23: 1 | E23: 1 | F23: 1 | G23: 1 | H23: 1 | I23: 1 | J23: 1 | K23: 1 | L23: 1
B24: Provider 4 | C24: 1 | D24: 1 | E24: 1 | F24: 1 | G24: 1 | H24: 1 | I24: 1 | J24: 1 | K24: 1 | L24: 1
B25: Provider 5 | C25: 1 | D25: 1 | E25: 1 | F25: 1 | G25: 1 | H25: 1 | I25: 1 | J25: 1 | K25: 1 | L25: 1
B26: Provider 6 | C26: 1 | D26: 1 | E26: 1 | F26: 1 | G26: 1 | H26: 1 | I26: 1 | J26: 1 | K26: 1 | L26: 1
B27: Provider 7 | C27: 1 | D27: 1 | E27: 1 | F27: 1 | G27: 1 | H27: 1 | I27: 1 | J27: 1 | K27: 1 | L27: 1
B28: Provider 8 | C28: 1 | D28: 1 | E28: 1 | F28: 1 | G28: 1 | H28: 1 | I28: 1 | J28: 1 | K28: 1 | L28: 1
A29: Week 4 | B29: Provider 1 | C29: 1 | D29: 1 | E29: 1 | F29: 1 | G29: 1 | H29: 1 | I29: 1 | J29: 1 | K29: 1 | L29: 1
B30: Provider 2 | C30: 1 | D30: 1 | E30: 1 | F30: 1 | G30: 1 | H30: 1 | I30: 1 | J30: 1 | K30: 1 | L30: 1
B31: Provider 3 | C31: 1 | D31: 1 | E31: 1 | F31: 1 | G31: 1 | H31: 1 | I31: 1 | J31: 1 | K31: 1 | L31: 1
B32: Provider 4 | C32: 1 | D32: 1 | E32: 1 | F32: 1 | G32: 1 | H32: 1 | I32: 1 | J32: 1 | K32: 1 | L32: 1
B33: Provider 5 | C33: 1 | D33: 1 | E33: 1 | F33: 1 | G33: 1 | H33: 1 | I33: 1 | J33: 1 | K33: 1 | L33: 1
B34: Provider 6 | C34: 1 | D34: 1 | E34: 1 | F34: 1 | G34: 1 | H34: 1 | I34: 1 | J34: 1 | K34: 1 | L34: 1
B35: Provider 7 | C35: 1 | D35: 1 | E35: 1 | F35: 1 | G35: 1 | H35: 1 | I35: 1 | J35: 1 | K35: 1 | L35: 1
B36: Provider 8 | C36: 1 | D36: 1 | E36: 1 | F36: 1 | G36: 1 | H36: 1 | I36: 1 | J36: 1 | K36: 1 | L36: 1

Sheet Room Requirements (hidden)
A1: Room Requirements
A2: How many rooms does a provider or specialist require? It does not matter if the provider/specialist is scheduled. The number will most likely be the same for all cells in a row.
C4: Monday AM | D4: Monday PM | E4: Tuesday AM | F4: Tuesday PM | G4: Wednesday AM | H4: Wednesday PM | I4: Thursday AM | J4: Thursday PM | K4: Friday AM | L4: Friday PM
A5: All Weeks | B5: Provider 1 | C5: 1 | D5: 1 | E5: 1 | F5: 1 | G5: 1 | H5: 1 | I5: 1 | J5: 1 | K5: 1 | L5: 1 | N5: Options
B6: Provider 2 | C6: 2 | D6: 2 | E6: 2 | F6: 2 | G6: 2 | H6: 2 | I6: 2 | J6: 2 | K6: 2 | L6: 2 | N6: 0 | O6: rooms required
B7: Provider 3 | C7: 2 | D7: 2 | E7: 2 | F7: 2 | G7: 2 | H7: 2 | I7: 2 | J7: 2 | K7: 2 | L7: 2 | N7: 1 | O7: rooms required
B8: Provider 4 | C8: 2 | D8: 2 | E8: 2 | F8: 2 | G8: 2 | H8: 2 | I8: 2 | J8: 2 | K8: 2 | L8: 2 | N8: 2 | O8: rooms required
B9: Provider 5 | C9: 2 | D9: 2 | E9: 2 | F9: 2 | G9: 2 | H9: 2 | I9: 2 | J9: 2 | K9: 2 | L9: 2 | N9: 3 | O9: rooms required
B10: Provider 6 | C10: 2 | D10: 2 | E10: 2 | F10: 2 | G10: 2 | H10: 2 | I10: 2 | J10: 2 | K10: 2 | L10: 2 | N10: 4 | O10: rooms required
B11: Provider 7 | C11: 2 | D11: 2 | E11: 2 | F11: 2 | G11: 2 | H11: 2 | I11: 2 | J11: 2 | K11: 2 | L11: 2 | N11: 5 | O11: rooms required
B12: Provider 8 | C12: 2 | D12: 2 | E12: 2 | F12: 2 | G12: 2 | H12: 2 | I12: 2 | J12: 2 | K12: 2 | L12: 2 | N12: 6 | O12: rooms required
B13: Specialist 1 | C13: 3 | D13: 3 | E13: 3 | F13: 3 | G13: 3 | H13: 3 | I13: 3 | J13: 3 | K13: 3 | L13: 3
B14: Specialist 2 | C14: 3 | D14: 3 | E14: 3 | F14: 3 | G14: 3 | H14: 3 | I14: 3 | J14: 3 | K14: 3 | L14: 3
B15: Specialist 3 | C15: 3 | D15: 3 | E15: 3 | F15: 3 | G15: 3 | H15: 3 | I15: 3 | J15: 3 | K15: 3 | L15: 3
B16: Specialist 4 | C16: 1 | D16: 1 | E16: 1 | F16: 1 | G16: 1 | H16: 1 | I16: 1 | J16: 1 | K16: 1 | L16: 1
B17: Specialiat 5 | C17: 1 | D17: 1 | E17: 1 | F17: 1 | G17: 1 | H17: 1 | I17: 1 | J17: 1 | K17: 1 | L17: 1
B18: Specialist 6 | C18: 1 | D18: 1 | E18: 1 | F18: 1 | G18: 1 | H18: 1 | I18: 1 | J18: 1 | K18: 1 | L18: 1
B19: Specialist 7 | C19: 1 | D19: 1 | E19: 1 | F19: 1 | G19: 1 | H19: 1 | I19: 1 | J19: 1 | K19: 1 | L19: 1

Sheet Nurse Use of Rooms (hidden)
A1: Utilization of Rooms by Nurses & Health Techs
A2: How many EXAM ROOMS that could be used for patient appointments are expected to be utilized by nurses or health techs for other purposes?
C4: Monday AM | D4: Monday PM | E4: Tuesday AM | F4: Tuesday PM | G4: Wednesday AM | H4: Wednesday PM | I4: Thursday AM | J4: Thursday PM | K4: Friday AM | L4: Friday PM
A5: Week 1 | B5: Number of Rooms | C5: 0 | D5: 0 | E5: 0 | F5: 0 | G5: 0 | H5: 0 | I5: 0 | J5: 0 | K5: 0 | L5: 0
A6: Week 2 | B6: Number of Rooms | C6: 0 | D6: 0 | E6: 0 | F6: 0 | G6: 0 | H6: 0 | I6: 0 | J6: 0 | K6: 0 | L6: 0
A7: Week 3 | B7: Number of Rooms | C7: 0 | D7: 0 | E7: 0 | F7: 0 | G7: 0 | H7: 0 | I7: 0 | J7: 0 | K7: 0 | L7: 0
A8: Week 4 | B8: Number of Rooms | C8: 0 | D8: 0 | E8: 0 | F8: 0 | G8: 0 | H8: 0 | I8: 0 | J8: 0 | K8: 0 | L8: 0

Sheet Time Away (hidden)
A1: Time Away
A2: Set to 0 for any time in which the provider has approved vacation time or is scheduled for routine time away from this facility.
C4: Monday AM | D4: Monday PM | E4: Tuesday AM | F4: Tuesday PM | G4: Wednesday AM | H4: Wednesday PM | I4: Thursday AM | J4: Thursday PM | K4: Friday AM | L4: Friday PM
A5: Week 1 | B5: Provider 1 | C5: 1 | D5: 1 | E5: 1 | F5: 1 | G5: 1 | H5: 1 | I5: 1 | J5: 1 | K5: 1 | L5: 0 | N5: Options
B6: Provider 2 | C6: 1 | D6: 1 | E6: 1 | F6: 1 | G6: 1 | H6: 1 | I6: 1 | J6: 1 | K6: 1 | L6: 1 | N6: 0 | O6: Time away approved
B7: Provider 3 | C7: 1 | D7: 1 | E7: 1 | F7: 1 | G7: 1 | H7: 1 | I7: 1 | J7: 1 | K7: 1 | L7: 1 | N7: 1 | O7: No time away
B8: Provider 4 | C8: 1 | D8: 1 | E8: 1 | F8: 1 | G8: 1 | H8: 1 | I8: 1 | J8: 1 | K8: 1 | L8: 1
B9: Provider 5 | C9: 1 | D9: 1 | E9: 1 | F9: 1 | G9: 1 | H9: 1 | I9: 1 | J9: 1 | K9: 1 | L9: 1
B10: Provider 6 | C10: 1 | D10: 1 | E10: 1 | F10: 1 | G10: 1 | H10: 1 | I10: 1 | J10: 1 | K10: 1 | L10: 1
B11: Provider 7 | C11: 1 | D11: 1 | E11: 1 | F11: 1 | G11: 1 | H11: 1 | I11: 1 | J11: 1 | K11: 1 | L11: 1
B12: Provider 8 | C12: 1 | D12: 1 | E12: 1 | F12: 1 | G12: 1 | H12: 1 | I12: 1 | J12: 1 | K12: 1 | L12: 1
A13: Week 2 | B13: Provider 1 | C13: 1 | D13: 1 | E13: 1 | F13: 1 | G13: 1 | H13: 1 | I13: 1 | J13: 1 | K13: 1 | L13: 0
B14: Provider 2 | C14: 1 | D14: 1 | E14: 1 | F14: 1 | G14: 1 | H14: 1 | I14: 1 | J14: 1 | K14: 1 | L14: 1
B15: Provider 3 | C15: 1 | D15: 1 | E15: 1 | F15: 1 | G15: 1 | H15: 1 | I15: 1 | J15: 1 | K15: 1 | L15: 1
B16: Provider 4 | C16: 1 | D16: 1 | E16: 1 | F16: 1 | G16: 1 | H16: 1 | I16: 1 | J16: 1 | K16: 1 | L16: 1
B17: Provider 5 | C17: 1 | D17: 1 | E17: 1 | F17: 1 | G17: 1 | H17: 1 | I17: 1 | J17: 1 | K17: 1 | L17: 1
B18: Provider 6 | C18: 1 | D18: 1 | E18: 1 | F18: 1 | G18: 1 | H18: 1 | I18: 1 | J18: 1 | K18: 1 | L18: 1
B19: Provider 7 | C19: 1 | D19: 1 | E19: 1 | F19: 1 | G19: 1 | H19: 1 | I19: 1 | J19: 1 | K19: 1 | L19: 1
B20: Provider 8 | C20: 1 | D20: 1 | E20: 1 | F20: 1 | G20: 1 | H20: 1 | I20: 1 | J20: 1 | K20: 1 | L20: 1
A21: Week 3 | B21: Provider 1 | C21: 1 | D21: 1 | E21: 1 | F21: 1 | G21: 1 | H21: 1 | I21: 1 | J21: 1 | K21: 1 | L21: 0
B22: Provider 2 | C22: 1 | D22: 1 | E22: 1 | F22: 1 | G22: 1 | H22: 1 | I22: 1 | J22: 1 | K22: 1 | L22: 1
B23: Provider 3 | C23: 1 | D23: 1 | E23: 1 | F23: 1 | G23: 1 | H23: 1 | I23: 1 | J23: 1 | K23: 1 | L23: 1
B24: Provider 4 | C24: 1 | D24: 1 | E24: 1 | F24: 1 | G24: 1 | H24: 1 | I24: 1 | J24: 1 | K24: 1 | L24: 1
B25: Provider 5 | C25: 1 | D25: 1 | E25: 1 | F25: 1 | G25: 1 | H25: 1 | I25: 1 | J25: 1 | K25: 1 | L25: 1
B26: Provider 6 | C26: 1 | D26: 1 | E26: 1 | F26: 1 | G26: 1 | H26: 1 | I26: 1 | J26: 1 | K26: 1 | L26: 1
B27: Provider 7 | C27: 1 | D27: 1 | E27: 1 | F27: 1 | G27: 1 | H27: 1 | I27: 1 | J27: 1 | K27: 1 | L27: 1
B28: Provider 8 | C28: 1 | D28: 1 | E28: 1 | F28: 1 | G28: 1 | H28: 1 | I28: 1 | J28: 1 | K28: 1 | L28: 1
A29: Week 4 | B29: Provider 1 | C29: 1 | D29: 1 | E29: 1 | F29: 1 | G29: 1 | H29: 1 | I29: 1 | J29: 1 | K29: 1 | L29: 0
B30: Provider 2 | C30: 1 | D30: 1 | E30: 1 | F30: 1 | G30: 1 | H30: 1 | I30: 1 | J30: 1 | K30: 1 | L30: 1
B31: Provider 3 | C31: 1 | D31: 1 | E31: 1 | F31: 1 | G31: 1 | H31: 1 | I31: 1 | J31: 1 | K31: 1 | L31: 1
B32: Provider 4 | C32: 1 | D32: 1 | E32: 1 | F32: 1 | G32: 1 | H32: 1 | I32: 1 | J32: 1 | K32: 1 | L32: 1
B33: Provider 5 | C33: 1 | D33: 1 | E33: 1 | F33: 1 | G33: 1 | H33: 1 | I33: 1 | J33: 1 | K33: 1 | L33: 1
B34: Provider 6 | C34: 1 | D34: 1 | E34: 1 | F34: 1 | G34: 1 | H34: 1 | I34: 1 | J34: 1 | K34: 1 | L34: 1
B35: Provider 7 | C35: 1 | D35: 1 | E35: 1 | F35: 1 | G35: 1 | H35: 1 | I35: 1 | J35: 1 | K35: 1 | L35: 1
B36: Provider 8 | C36: 1 | D36: 1 | E36: 1 | F36: 1 | G36: 1 | H36: 1 | I36: 1 | J36: 1 | K36: 1 | L36: 1

Sheet Number of Rooms (hidden)
A1: Number of Rooms
A2: How many rooms are available for exams?
C4: Monday AM | D4: Monday PM | E4: Tuesday AM | F4: Tuesday PM | G4: Wednesday AM | H4: Wednesday PM | I4: Thursday AM | J4: Thursday PM | K4: Friday AM | L4: Friday PM
A5: Week 1 | B5: Number of Rooms | C5: 20 | D5: 20 | E5: 20 | F5: 20 | G5: 20 | H5: 20 | I5: 20 | J5: 20 | K5: 20 | L5: 20
A6: Week 2 | B6: Number of Rooms | C6: 20 | D6: 20 | E6: 20 | F6: 20 | G6: 20 | H6: 20 | I6: 20 | J6: 20 | K6: 20 | L6: 20
A7: Week 3 | B7: Number of Rooms | C7: 20 | D7: 20 | E7: 20 | F7: 20 | G7: 20 | H7: 20 | I7: 20 | J7: 20 | K7: 20 | L7: 20
A8: Week 4 | B8: Number of Rooms | C8: 20 | D8: 20 | E8: 20 | F8: 20 | G8: 20 | H8: 20 | I8: 20 | J8: 20 | K8: 20 | L8: 20

Sheet Inputs
A1: Main Input Menu
A3: Step 1: | B3: How many providers are to be scheduled? (15 provider maximum) | C3: 8
B4: How many specialists do you expect this month? (15 specialist maximum) | C4: 7
A6: Step 2: | B6: Edit provider preferences ……………….…………………………………………………….
A8: Step 3: | B8: Edit specialist schedules ……………….………………………………………………………
A10: Step 4: | B10: Edit provider and specialist room requirements ……………….…………………….
A12: Step 5: | B12: Edit nurse and health tech utilization of examination rooms ……………….….
A14: Step 6: | B14: Edit approved provider time away ……………….………………………………………..
A16: Step 7: | B16: Edit the number of exam rooms ……………….……………………………………………
A18: Step 8: | B18: Determine the following:
B19: Minimum Number of Providers to be Assigned to Clinic Duty per Day: | C19: 4
B20: Number of Administrative Periods to Allow Each Provider: | C20: 2 | D20: in a given week
B21: Number of Triage Periods to Require of Each Provider: | C21: 1 | D21: in a given week | H21: every other week
B22: Require Triage Assignment for Provider: | C22: every other week | H22: every week
B23: How many providers should start with Triage in Week 1? | C23: 4
A25: Step 9: | B25: Enter the following information.
B26: Length of Morning Period: (i.e. 8am - 12pm = 4) | C26: 4 | D26: hours
B27: Length of Afternoon Period: (i.e. 1pm - 4pm = 3) | C27: 3 | D27: hours
A29: Step 10: | B29: Modify scheduled appointment lengths if necessary.
B30: New patient appointment length: | C30: 60 | D30: minutes
B31: Established patient appointment length: | C31: 30 | D31: minutes
B32: Phone visit patient appointment length: | C32: 10 | D32: minutes
A34: Step 11: | B34: Modify PACT percentange requirements for various patient types.
B35: New patients: | C35: 0.35
B36: Established patients: | C36: 0.6
B37: Phone visit patients: | C37: 0.05
B38: Total must equal 100% | C38: =SUM(C35:C37) -> 1

Sheet Outputs
A1: Optimal Provider Schedule
C3: Monday AM | D3: Monday PM | E3: Tuesday AM | F3: Tuesday PM | G3: Wednesday AM | H3: Wednesday PM | I3: Thursday AM | J3: Thursday PM | K3: Friday AM | L3: Friday PM
A4: Week 1 | B4: Provider 1 | C4: 1 | D4: 0 | E4: 1 | F4: 1 | G4: 0 | H4: 1 | I4: 1 | J4: 1 | K4: 1 | L4: 0
B5: Provider 2 | C5: 0 | D5: 1 | E5: 0 | F5: 0 | G5: 1 | H5: 1 | I5: 1 | J5: 1 | K5: 1 | L5: 1
B6: Provider 3 | C6: 1 | D6: 1 | E6: 0 | F6: 1 | G6: 1 | H6: 0 | I6: 0 | J6: 1 | K6: 1 | L6: 1
B7: Provider 4 | C7: 0 | D7: 0 | E7: 1 | F7: 0 | G7: 1 | H7: 1 | I7: 1 | J7: 1 | K7: 1 | L7: 1
B8: Provider 5 | C8: 0 | D8: 0 | E8: 1 | F8: 1 | G8: 1 | H8: 1 | I8: 1 | J8: 1 | K8: 1 | L8: 1
B9: Provider 6 | C9: 0 | D9: 1 | E9: 1 | F9: 1 | G9: 0 | H9: 1 | I9: 1 | J9: 1 | K9: 1 | L9: 1
B10: Provider 7 | C10: 1 | D10: 1 | E10: 1 | F10: 0 | G10: 0 | H10: 1 | I10: 1 | J10: 1 | K10: 1 | L10: 1
B11: Provider 8 | C11: 1 | D11: 0 | E11: 1 | F11: 1 | G11: 0 | H11: 1 | I11: 1 | J11: 1 | K11: 1 | L11: 1
A12: Week 2 | B12: Provider 1 | C12: 1 | D12: 0 | E12: 1 | F12: 1 | G12: 1 | H12: 1 | I12: 1 | J12: 1 | K12: 1 | L12: 0
B13: Provider 2 | C13: 1 | D13: 1 | E13: 0 | F13: 1 | G13: 0 | H13: 1 | I13: 1 | J13: 1 | K13: 1 | L13: 1
B14: Provider 3 | C14: 1 | D14: 1 | E14: 1 | F14: 1 | G14: 1 | H14: 0 | I14: 0 | J14: 1 | K14: 1 | L14: 1
B15: Provider 4 | C15: 1 | D15: 0 | E15: 1 | F15: 1 | G15: 0 | H15: 1 | I15: 1 | J15: 1 | K15: 1 | L15: 1
B16: Provider 5 | C16: 0 | D16: 0 | E16: 1 | F16: 1 | G16: 0 | H16: 1 | I16: 1 | J16: 1 | K16: 1 | L16: 1
B17: Provider 6 | C17: 0 | D17: 0 | E17: 1 | F17: 0 | G17: 1 | H17: 1 | I17: 1 | J17: 1 | K17: 1 | L17: 1
B18: Provider 7 | C18: 0 | D18: 1 | E18: 1 | F18: 0 | G18: 0 | H18: 1 | I18: 1 | J18: 1 | K18: 1 | L18: 1
B19: Provider 8 | C19: 0 | D19: 1 | E19: 0 | F19: 0 | G19: 1 | H19: 1 | I19: 1 | J19: 1 | K19: 1 | L19: 1
A20: Week 3 | B20: Provider 1 | C20: 1 | D20: 0 | E20: 1 | F20: 1 | G20: 0 | H20: 1 | I20: 1 | J20: 1 | K20: 1 | L20: 0
B21: Provider 2 | C21: 0 | D21: 1 | E21: 0 | F21: 0 | G21: 1 | H21: 1 | I21: 1 | J21: 1 | K21: 1 | L21: 1
B22: Provider 3 | C22: 1 | D22: 1 | E22: 0 | F22: 1 | G22: 1 | H22: 0 | I22: 0 | J22: 1 | K22: 1 | L22: 1
B23: Provider 4 | C23: 0 | D23: 0 | E23: 1 | F23: 0 | G23: 1 | H23: 1 | I23: 1 | J23: 1 | K23: 1 | L23: 1
B24: Provider 5 | C24: 0 | D24: 0 | E24: 1 | F24: 1 | G24: 1 | H24: 1 | I24: 1 | J24: 1 | K24: 1 | L24: 1
B25: Provider 6 | C25: 0 | D25: 1 | E25: 1 | F25: 1 | G25: 0 | H25: 1 | I25: 1 | J25: 1 | K25: 1 | L25: 1
B26: Provider 7 | C26: 1 | D26: 1 | E26: 1 | F26: 0 | G26: 0 | H26: 1 | I26: 1 | J26: 1 | K26: 1 | L26: 1
B27: Provider 8 | C27: 1 | D27: 0 | E27: 1 | F27: 1 | G27: 0 | H27: 1 | I27: 1 | J27: 1 | K27: 1 | L27: 1
A28: Week 4 | B28: Provider 1 | C28: 1 | D28: 0 | E28: 1 | F28: 1 | G28: 1 | H28: 1 | I28: 1 | J28: 1 | K28: 1 | L28: 0
B29: Provider 2 | C29: 1 | D29: 1 | E29: 0 | F29: 1 | G29: 0 | H29: 1 | I29: 1 | J29: 1 | K29: 1 | L29: 1
B30: Provider 3 | C30: 1 | D30: 1 | E30: 1 | F30: 1 | G30: 1 | H30: 0 | I30: 0 | J30: 1 | K30: 1 | L30: 1
B31: Provider 4 | C31: 1 | D31: 0 | E31: 1 | F31: 1 | G31: 0 | H31: 1 | I31: 1 | J31: 1 | K31: 1 | L31: 1
B32: Provider 5 | C32: 0 | D32: 0 | E32: 1 | F32: 1 | G32: 0 | H32: 1 | I32: 1 | J32: 1 | K32: 1 | L32: 1
B33: Provider 6 | C33: 0 | D33: 0 | E33: 1 | F33: 0 | G33: 1 | H33: 1 | I33: 1 | J33: 1 | K33: 1 | L33: 1
B34: Provider 7 | C34: 0 | D34: 1 | E34: 1 | F34: 0 | G34: 0 | H34: 1 | I34: 1 | J34: 1 | K34: 1 | L34: 1
B35: Provider 8 | C35: 0 | D35: 1 | E35: 0 | F35: 0 | G35: 1 | H35: 1 | I35: 1 | J35: 1 | K35: 1 | L35: 1

Sheet Outputs 2
A1: Patient Throughput Guidelines
A3: If any schedule solutions were infeasible (represented by grayed-out weeks), this value is skewed. You should modify your inputs to obtain a feasible schedule and then view Patient Throughput.
A6: With the patient mix requirement of: | D6: =newPercent -> 0.35 | E6: new patients | G6: ="approximately 444 new patients can be seen in a month," -> approximately 444 new patients can be seen in a month,
D7: =estPercent -> 0.6 | E7: established patients | G7: ="approximately 760 established patients can be seen in a month, and" -> approximately 760 established patients can be seen in a month, and
D8: =phonePercent -> 0.05 | E8: phone visits | G8: ="approximately 64 phone visit patients can be seen in a month," -> approximately 64 phone visit patients can be seen in a month,
G10: ="for an ideal approximate patient throughput value of 1,268 patients per month." -> for an ideal approximate patient throughput value of 1,268 patients per month.
